[Event "Open Nuevo Centro. Jornada 1"]
[Site "Chess.com"]
[Date "2020.06.19"]
[Round "5"]
[White "Grigorev, Artur "]
[Black "Lupu, Alexandru Mihai"]
[Result "1-0"]
[WhiteElo "897"]
[BlackElo "983"]
[TimeControl "180+2"]
[EndTime "11:23:17 PDT"]
[Termination "Victoria de Arturiog por jaque mate"]

1. e4 {[%clk 0:03:01.9]} 1... e5 {[%clk 0:02:59.9]} 2. Nf3 {[%clk 0:03:02.4]}
2... Nc6 {[%clk 0:02:48.5]} 3. Bc4 {[%clk 0:03:00.5]} 3... Nf6 {[%clk
0:02:46.9]} 4. d3 {[%clk 0:02:58.6]} 4... d6 {[%clk 0:02:43.4]} 5. Bg5 {[%clk
0:02:55.5]} 5... Be6 {[%clk 0:02:37.3]} 6. Bxe6 {[%clk 0:02:54.3]} 6... fxe6
{[%clk 0:02:37.1]} 7. Bxf6 {[%clk 0:02:54.2]} 7... Qxf6 {[%clk 0:02:35.7]} 8.
Nc3 {[%clk 0:02:52.9]} 8... Qd8 {[%clk 0:02:32.9]} 9. O-O {[%clk 0:02:49.6]}
9... d5 {[%clk 0:02:31.4]} 10. exd5 {[%clk 0:02:48.3]} 10... exd5 {[%clk
0:02:29.9]} 11. Re1 {[%clk 0:02:47.7]} 11... Qd6 {[%clk 0:02:25.9]} 12. d4
{[%clk 0:02:43.5]} 12... e4 {[%clk 0:02:24.2]} 13. Ne5 {[%clk 0:02:27.9]} 13...
Nxe5 {[%clk 0:02:22]} 14. dxe5 {[%clk 0:02:28.1]} 14... Qxe5 {[%clk 0:02:21.5]}
15. Nxd5 {[%clk 0:02:24.6]} 15... O-O-O {[%clk 0:02:19.1]} 16. c4 {[%clk
0:02:08.6]} 16... c6 {[%clk 0:02:13.7]} 17. Qg4+ {[%clk 0:01:45.1]} 17... Rd7
{[%clk 0:01:44.6]} 18. Rxe4 {[%clk 0:01:36.5]} 18... Qxb2 {[%clk 0:01:42.5]} 19.
Re8# {[%clk 0:01:30.4]} 1

[Event "Open Nuevo Centro. Jornada 1"]
[Site "Chess.com"]
[Date "2020.06.19"]
[Round "5"]
[White "Moreno Garc�a, Gonzalo "]
[Black "Maestre Soler, Sergio"]
[Result "0-1"]
[WhiteElo "612"]
[BlackElo "972"]
[TimeControl "180+2"]
[EndTime "11:23:28 PDT"]
[Termination "Victoria de Sergiete2011 por jaque mate"]

1. e4 {[%clk 0:03:01]} 1... e5 {[%clk 0:03:00.8]} 2. Nf3 {[%clk 0:02:59.9]} 2...
Bc5 {[%clk 0:03:00.9]} 3. Nc3 {[%clk 0:02:59.1]} 3... Nc6 {[%clk 0:02:59.8]} 4.
Bc4 {[%clk 0:02:58.4]} 4... h6 {[%clk 0:03:00.5]} 5. d3 {[%clk 0:02:58.7]} 5...
Nf6 {[%clk 0:03:00.7]} 6. h3 {[%clk 0:02:52.9]} 6... O-O {[%clk 0:02:56]} 7. a3
{[%clk 0:02:54.8]} 7... d6 {[%clk 0:02:56.5]} 8. O-O {[%clk 0:02:50.7]} 8... a6
{[%clk 0:02:57.6]} 9. Qe2 {[%clk 0:02:48.7]} 9... Nd4 {[%clk 0:02:52.4]} 10. b4
{[%clk 0:02:50.3]} 10... Nxe2+ {[%clk 0:02:52.4]} 11. Nxe2 {[%clk 0:02:31.9]}
11... Bb6 {[%clk 0:02:51]} 12. Ra2 {[%clk 0:02:03]} 12... Bd7 {[%clk 0:02:49.3]}
13. c3 {[%clk 0:01:54.4]} 13... Qc8 {[%clk 0:02:49.6]} 14. d4 {[%clk 0:01:49.1]}
14... Bxh3 {[%clk 0:02:49.2]} 15. gxh3 {[%clk 0:01:45.9]} 15... Qxh3 {[%clk
0:02:49.4]} 16. d5 {[%clk 0:01:42.6]} 16... Qxf3 {[%clk 0:02:45.2]} 17. b5
{[%clk 0:01:25.1]} 17... Ng4 {[%clk 0:02:35.2]} 18. Bxh6 {[%clk 0:00:58.8]}
18... Bxf2+ {[%clk 0:02:32.6]} 19. Rxf2 {[%clk 0:00:57.3]} 19... Qxf2+ {[%clk
0:02:32.8]} 20. Kh1 {[%clk 0:00:54.1]} 20... Qh2# {[%clk 0:02:31.7]} 0

[Event "Open Nuevo Centro. Jornada 1"]
[Site "Chess.com"]
[Date "2020.06.19"]
[Round "5"]
[White "Morata Briones, Carlos"]
[Black "Furio Martinez, Francisco"]
[Result "1-0"]
[WhiteElo "677"]
[BlackElo "771"]
[TimeControl "180+2"]
[EndTime "11:23:45 PDT"]
[Termination "Victoria de CarlosMorata por abandono"]

1. e4 {[%clk 0:03:01.9]} 1... e6 {[%clk 0:03:00.5]} 2. Nc3 {[%clk 0:02:57.8]}
2... d5 {[%clk 0:02:59.8]} 3. f3 {[%clk 0:02:54]} 3... Nf6 {[%clk 0:02:56]} 4.
d3 {[%clk 0:02:50.8]} 4... Be7 {[%clk 0:02:51.1]} 5. Bf4 {[%clk 0:02:46.9]} 5...
O-O {[%clk 0:02:50.2]} 6. Nh3 {[%clk 0:02:46.5]} 6... Nbd7 {[%clk 0:02:49]} 7.
Be2 {[%clk 0:02:46.9]} 7... b6 {[%clk 0:02:47.8]} 8. O-O {[%clk 0:02:43.5]} 8...
Bb7 {[%clk 0:02:46.6]} 9. Ng5 {[%clk 0:02:40.3]} 9... Rc8 {[%clk 0:02:42.7]} 10.
Qd2 {[%clk 0:02:36.2]} 10... c5 {[%clk 0:02:39.1]} 11. b3 {[%clk 0:02:29.9]}
11... c4 {[%clk 0:02:30.3]} 12. bxc4 {[%clk 0:02:28.2]} 12... dxc4 {[%clk
0:02:29.2]} 13. dxc4 {[%clk 0:02:28.4]} 13... Bb4 {[%clk 0:02:05.3]} 14. a3
{[%clk 0:02:22]} 14... Bxa3 {[%clk 0:02:01.7]} 15. Rxa3 {[%clk 0:02:21.5]} 15...
Qe7 {[%clk 0:01:59.3]} 16. Bd6 {[%clk 0:02:13.3]} 16... Qd8 {[%clk 0:01:55.1]}
17. Bxf8 {[%clk 0:02:13.2]} 17... Qxf8 {[%clk 0:01:53.9]} 18. Rxa7 {[%clk
0:02:12.4]} 18... Bc6 {[%clk 0:01:48.3]} 19. f4 {[%clk 0:01:58.9]} 19... Bxe4
{[%clk 0:01:39.3]} 20. Ncxe4 {[%clk 0:01:51.6]} 20... Nxe4 {[%clk 0:01:39.6]}
21. Nxe4 {[%clk 0:01:51.9]} 21... Rxc4 {[%clk 0:01:38.5]} 22. Qxd7 {[%clk
0:01:50.1]} 22... Rxc2 {[%clk 0:01:37]} 23. Bb5 {[%clk 0:01:37]} 1

[Event "Open Nuevo Centro. Jornada 1"]
[Site "Chess.com"]
[Date "2020.06.19"]
[Round "5"]
[White "Yeste Campos, Manuel"]
[Black "Cin� Asensio, Luca "]
[Result "0-1"]
[WhiteElo "908"]
[BlackElo "483"]
[TimeControl "180+2"]
[EndTime "11:24:00 PDT"]
[Termination "Victoria de Titanes34 por jaque mate"]

1. e4 {[%clk 0:03:01.9]} 1... e5 {[%clk 0:03:00.6]} 2. Nf3 {[%clk 0:03:02.4]}
2... Nc6 {[%clk 0:03:00.8]} 3. Bb5 {[%clk 0:03:02.8]} 3... d6 {[%clk 0:03:01.4]}
4. O-O {[%clk 0:03:02.2]} 4... Nf6 {[%clk 0:02:59.5]} 5. d3 {[%clk 0:03:01.8]}
5... Bg4 {[%clk 0:02:57.7]} 6. Re1 {[%clk 0:03:01.4]} 6... Bxf3 {[%clk 0:02:57]}
7. Qxf3 {[%clk 0:03:01.5]} 7... Be7 {[%clk 0:02:57.2]} 8. c3 {[%clk 0:02:58.4]}
8... O-O {[%clk 0:02:56.1]} 9. d4 {[%clk 0:02:59.4]} 9... exd4 {[%clk
0:02:54.1]} 10. cxd4 {[%clk 0:02:59.9]} 10... Nxd4 {[%clk 0:02:54]} 11. Qd3
{[%clk 0:02:46.7]} 11... Nxb5 {[%clk 0:02:50.5]} 12. Qxb5 {[%clk 0:02:47.3]}
12... Nd7 {[%clk 0:02:43.4]} 13. Nc3 {[%clk 0:02:43.8]} 13... a6 {[%clk
0:02:42.5]} 14. Qxb7 {[%clk 0:02:42.8]} 14... Nc5 {[%clk 0:02:35.6]} 15. Qd5
{[%clk 0:02:28.7]} 15... Nd7 {[%clk 0:02:23]} 16. Qd3 {[%clk 0:02:26.4]} 16...
Ne5 {[%clk 0:02:21.1]} 17. Qg3 {[%clk 0:02:25.1]} 17... g6 {[%clk 0:02:19.4]}
18. Bh6 {[%clk 0:02:22.7]} 18... Re8 {[%clk 0:02:19.3]} 19. Nd5 {[%clk 0:02:20]}
19... Bf6 {[%clk 0:02:13.3]} 20. Nxf6+ {[%clk 0:02:09.5]} 20... Qxf6 {[%clk
0:02:10.2]} 21. Bg5 {[%clk 0:02:08]} 21... Qg7 {[%clk 0:02:06.1]} 22. Qh3 {[%clk
0:01:57.9]} 22... h5 {[%clk 0:02:02.8]} 23. Rad1 {[%clk 0:01:39.3]} 23... f6
{[%clk 0:02:01.1]} 24. Bf4 {[%clk 0:01:37.7]} 24... g5 {[%clk 0:01:52.8]} 25.
Bxe5 {[%clk 0:01:36.7]} 25... fxe5 {[%clk 0:01:53]} 26. Qe6+ {[%clk 0:01:32.3]}
26... Rxe6 {[%clk 0:01:52.7]} 27. Rf1 {[%clk 0:01:31.6]} 27... g4 {[%clk
0:01:49.2]} 28. h3 {[%clk 0:01:31.4]} 28... gxh3 {[%clk 0:01:49.2]} 29. Kh2
{[%clk 0:01:27.2]} 29... Qxg2# {[%clk 0:01:48.5]} 0

[Event "Open Nuevo Centro. Jornada 1"]
[Site "Chess.com"]
[Date "2020.06.19"]
[Round "5"]
[White "R�os Valle, Daniel "]
[Black "Salvador Buiza, Victor"]
[Result "0-1"]
[WhiteElo "1185"]
[BlackElo "1519"]
[TimeControl "180+2"]
[EndTime "11:24:09 PDT"]
[Termination "Victoria de TERROROSCURO666 por abandono"]

1. e4 {[%clk 0:03:01.9]} 1... e5 {[%clk 0:02:58.2]} 2. Nf3 {[%clk 0:03:00.6]}
2... Nc6 {[%clk 0:02:59.3]} 3. Bb5 {[%clk 0:03:01.3]} 3... Bc5 {[%clk
0:02:59.5]} 4. O-O {[%clk 0:02:56.6]} 4... d6 {[%clk 0:02:57.8]} 5. Nc3 {[%clk
0:02:54.1]} 5... Bg4 {[%clk 0:02:56.9]} 6. h3 {[%clk 0:02:53.2]} 6... Bh5 {[%clk
0:02:56.4]} 7. d3 {[%clk 0:02:46.3]} 7... Ne7 {[%clk 0:02:56.1]} 8. Bg5 {[%clk
0:02:46.1]} 8... O-O {[%clk 0:02:48.9]} 9. Na4 {[%clk 0:02:37.7]} 9... f6 {[%clk
0:02:39.9]} 10. Bd2 {[%clk 0:02:26.6]} 10... Nd4 {[%clk 0:02:38.1]} 11. Nxc5
{[%clk 0:02:23.8]} 11... dxc5 {[%clk 0:02:38.2]} 12. g4 {[%clk 0:02:14.4]} 12...
Nxb5 {[%clk 0:02:33.7]} 13. gxh5 {[%clk 0:02:12.2]} 13... Qe8 {[%clk 0:02:32.9]}
14. Ne1 {[%clk 0:02:04.9]} 14... f5 {[%clk 0:02:29.8]} 15. c4 {[%clk 0:01:54]}
15... Nd4 {[%clk 0:02:28.7]} 16. exf5 {[%clk 0:01:42.7]} 16... Rxf5 {[%clk
0:02:26]} 17. Qg4 {[%clk 0:01:40.7]} 17... Rxh5 {[%clk 0:02:16.4]} 18. Ng2
{[%clk 0:01:27.3]} 18... Qf7 {[%clk 0:01:55.3]} 19. Rae1 {[%clk 0:01:19.3]}
19... Nf3+ {[%clk 0:01:54.5]} 20. Kh1 {[%clk 0:01:17.8]} 20... Nxd2 {[%clk
0:01:53.1]} 21. Rg1 {[%clk 0:01:06.4]} 21... Nf3 {[%clk 0:01:53]} 22. Rxe5
{[%clk 0:01:02.2]} 22... Nxe5 {[%clk 0:01:45.4]} 23. Nf4 {[%clk 0:00:56.9]}
23... Nxg4 {[%clk 0:01:44.7]} 0

[Event "Open Nuevo Centro. Jornada 1"]
[Site "Chess.com"]
[Date "2020.06.19"]
[Round "5"]
[White "Garrido Barona, An�bal"]
[Black "Mart�nez Cuenca, Adri�n "]
[Result "0-1"]
[WhiteElo "467"]
[BlackElo "633"]
[TimeControl "180+2"]
[EndTime "11:24:10 PDT"]
[Termination "Victoria de AdrianM12 por tiempo"]

1. d4 {[%clk 0:02:57.7]} 1... e5 {[%clk 0:02:59]} 2. dxe5 {[%clk 0:02:57]} 2...
Bc5 {[%clk 0:02:58.6]} 3. Nf3 {[%clk 0:02:51]} 3... Nc6 {[%clk 0:02:51]} 4. Be3
{[%clk 0:02:51.4]} 4... f6 {[%clk 0:02:35.9]} 5. Bxc5 {[%clk 0:02:47.2]} 5...
fxe5 {[%clk 0:02:28.8]} 6. h3 {[%clk 0:02:33.9]} 6... e4 {[%clk 0:02:30.7]} 7.
Nd4 {[%clk 0:01:54.6]} 7... h5 {[%clk 0:02:32.6]} 8. f3 {[%clk 0:01:18.4]} 8...
Nb4 {[%clk 0:02:34.5]} 9. fxe4 {[%clk 0:01:08.2]} 9... Na6 {[%clk 0:02:28.9]}
10. b4 {[%clk 0:01:06.6]} 10... Nxc5 {[%clk 0:02:24.8]} 11. bxc5 {[%clk
0:01:06.1]} 11... d6 {[%clk 0:02:24.8]} 12. e3 {[%clk 0:00:16.2]} 12... dxc5
{[%clk 0:02:26.7]} 13. Nf3 {[%clk 0:00:10.7]} 13... c4 {[%clk 0:02:21.8]} 14.
Bxc4 {[%clk 0:00:04.8]} 14... c6 {[%clk 0:02:20.9]} 15. Ne5 {[%clk 0:00:03.1]}
15... b5 {[%clk 0:02:16.7]} 16. Nf7 {[%clk 0:00:03.1]} 16... Qxd1+ {[%clk
0:02:10.8]} 0

[Event "Open Nuevo Centro. Jornada 1"]
[Site "Chess.com"]
[Date "2020.06.19"]
[Round "5"]
[White "Zakharash, Georgii"]
[Black "M�ndez Gim�nez , N�stor Emmanuel"]
[Result "0-1"]
[WhiteElo "947"]
[BlackElo "1138"]
[TimeControl "180+2"]
[EndTime "11:24:14 PDT"]
[Termination "Victoria de NestorMendez8 por jaque mate"]

1. e4 {[%clk 0:03:01.9]} 1... e6 {[%clk 0:03:01.9]} 2. d4 {[%clk 0:03:02]} 2...
c5 {[%clk 0:03:02.6]} 3. Nf3 {[%clk 0:03:00.3]} 3... Nc6 {[%clk 0:03:03]} 4. Nc3
{[%clk 0:02:58.7]} 4... Qb6 {[%clk 0:03:03.6]} 5. b3 {[%clk 0:02:43.7]} 5... g6
{[%clk 0:03:00.5]} 6. d5 {[%clk 0:02:28.9]} 6... Nb4 {[%clk 0:03:00.5]} 7. d6
{[%clk 0:02:23.8]} 7... Bg7 {[%clk 0:02:56.5]} 8. e5 {[%clk 0:02:21.1]} 8... f6
{[%clk 0:02:54.4]} 9. Bf4 {[%clk 0:02:01.1]} 9... fxe5 {[%clk 0:02:48.8]} 10.
Bxe5 {[%clk 0:02:01.3]} 10... Bxe5 {[%clk 0:02:48.7]} 11. Nxe5 {[%clk
0:02:00.3]} 11... Nf6 {[%clk 0:02:49]} 12. Qf3 {[%clk 0:01:55.1]} 12... O-O
{[%clk 0:02:47.6]} 13. Qe3 {[%clk 0:01:52.9]} 13... Nxc2+ {[%clk 0:02:47.1]} 14.
Ke2 {[%clk 0:01:31.9]} 14... Nxe3 {[%clk 0:02:49]} 15. Kxe3 {[%clk 0:01:30]}
15... c4+ {[%clk 0:02:49.9]} 16. Kf3 {[%clk 0:01:15]} 16... Qxd6 {[%clk
0:02:43.4]} 17. Nxg6 {[%clk 0:01:13]} 17... Nd5+ {[%clk 0:02:41.2]} 18. Ke2
{[%clk 0:01:09.9]} 18... Nxc3+ {[%clk 0:02:41]} 19. Ke1 {[%clk 0:01:05]} 19...
hxg6 {[%clk 0:02:42.9]} 20. Bxc4 {[%clk 0:01:02.4]} 20... Qe5+ {[%clk
0:02:41.6]} 21. Kf1 {[%clk 0:00:56.9]} 21... b5 {[%clk 0:02:40.2]} 22. Bxb5
{[%clk 0:00:56.4]} 22... Qxb5+ {[%clk 0:02:39.9]} 23. Kg1 {[%clk 0:00:48.1]}
23... Ne2+ {[%clk 0:02:40.1]} 24. Kf1 {[%clk 0:00:44.1]} 24... Ng3+ {[%clk
0:02:40.3]} 25. Kg1 {[%clk 0:00:40.3]} 25... Qf1+ {[%clk 0:02:19.1]} 26. Rxf1
{[%clk 0:00:27.9]} 26... Ne2# {[%clk 0:02:18.6]} 0

[Event "Open Nuevo Centro. Jornada 1"]
[Site "Chess.com"]
[Date "2020.06.19"]
[Round "5"]
[White "Mart�nez Cuenca, Jose Andr�s"]
[Black "Rodriguez Rodriguez, Joan David "]
[Result "0-1"]
[WhiteElo "1247"]
[BlackElo "1630"]
[TimeControl "180+2"]
[EndTime "11:24:36 PDT"]
[Termination "Victoria de Not_Jr_chess por abandono"]

1. e4 {[%clk 0:03:01.9]} 1... e5 {[%clk 0:03:01]} 2. Qh5 {[%clk 0:02:59.3]} 2...
Nc6 {[%clk 0:02:59.3]} 3. Bc4 {[%clk 0:02:58.9]} 3... g6 {[%clk 0:03:00.4]} 4.
Qf3 {[%clk 0:02:59.8]} 4... Nf6 {[%clk 0:03:02]} 5. Nc3 {[%clk 0:02:58.7]} 5...
Bg7 {[%clk 0:02:59.4]} 6. Qd1 {[%clk 0:02:51.4]} 6... O-O {[%clk 0:03:00]} 7. d3
{[%clk 0:02:51.6]} 7... d6 {[%clk 0:02:59.7]} 8. Bg5 {[%clk 0:02:49.7]} 8... a6
{[%clk 0:02:58.4]} 9. Nf3 {[%clk 0:02:46.1]} 9... Bg4 {[%clk 0:02:49.5]} 10. h3
{[%clk 0:02:42.5]} 10... Bxf3 {[%clk 0:02:48.7]} 11. Qxf3 {[%clk 0:02:41.3]}
11... Nd4 {[%clk 0:02:50.1]} 12. Qd1 {[%clk 0:02:38.6]} 12... a5 {[%clk
0:02:41.1]} 13. O-O {[%clk 0:02:34.9]} 13... c6 {[%clk 0:02:33.7]} 14. Ne2
{[%clk 0:02:21.1]} 14... b5 {[%clk 0:02:30.4]} 15. Nxd4 {[%clk 0:02:03.8]} 15...
exd4 {[%clk 0:02:28.2]} 16. Bb3 {[%clk 0:01:51.2]} 16... a4 {[%clk 0:02:29]} 17.
Bxf7+ {[%clk 0:01:50.2]} 17... Rxf7 {[%clk 0:02:28.1]} 18. c4 {[%clk 0:01:48]}
18... dxc3 {[%clk 0:02:27.4]} 19. bxc3 {[%clk 0:01:48.3]} 19... Qd7 {[%clk
0:02:28.4]} 20. c4 {[%clk 0:01:47.8]} 20... bxc4 {[%clk 0:02:23.4]} 21. dxc4
{[%clk 0:01:46.9]} 21... Nxe4 {[%clk 0:02:22.6]} 22. Be3 {[%clk 0:01:42]} 22...
Bxa1 {[%clk 0:02:19.5]} 23. Qxa1 {[%clk 0:01:40.9]} 23... Qe7 {[%clk 0:02:06.4]}
24. Qd4 {[%clk 0:01:38.3]} 24... Nc5 {[%clk 0:02:00.7]} 25. Bd2 {[%clk
0:01:32.3]} 25... Qf6 {[%clk 0:01:53.9]} 26. Qxf6 {[%clk 0:01:20]} 26... Rxf6
{[%clk 0:01:55.8]} 27. Bc3 {[%clk 0:01:21]} 27... Re6 {[%clk 0:01:55.3]} 28. Rd1
{[%clk 0:01:18.1]} 28... Rae8 {[%clk 0:01:55.2]} 29. Rd4 {[%clk 0:01:16.9]}
29... Ne4 {[%clk 0:01:54.8]} 30. c5 {[%clk 0:01:04.7]} 30... Nxc3 {[%clk
0:01:52.2]} 31. cxd6 {[%clk 0:01:01.8]} 31... Ne2+ {[%clk 0:01:52.8]} 0

[Event "Open Nuevo Centro. Jornada 1"]
[Site "Chess.com"]
[Date "2020.06.19"]
[Round "5"]
[White "Garcia, Jhoel"]
[Black "Borissov, Juli�n"]
[Result "1-0"]
[WhiteElo "2328"]
[BlackElo "1843"]
[TimeControl "180+2"]
[EndTime "11:24:48 PDT"]
[Termination "Victoria de shoels por abandono"]

1. Nf3 {[%clk 0:03:00]} 1... d6 {[%clk 0:02:57.2]} 2. c4 {[%clk 0:03:01]} 2...
g6 {[%clk 0:02:58.1]} 3. d4 {[%clk 0:03:01.9]} 3... Bg7 {[%clk 0:02:59.1]} 4.
Nc3 {[%clk 0:03:03.4]} 4... Nf6 {[%clk 0:02:59.7]} 5. e4 {[%clk 0:03:04.5]} 5...
O-O {[%clk 0:02:59.6]} 6. Be2 {[%clk 0:03:05.9]} 6... e5 {[%clk 0:03:00]} 7. O-O
{[%clk 0:03:07]} 7... Nc6 {[%clk 0:03:00.1]} 8. d5 {[%clk 0:03:08.4]} 8... Ne7
{[%clk 0:02:59.8]} 9. Ne1 {[%clk 0:03:01.8]} 9... Ne8 {[%clk 0:02:58.8]} 10. Be3
{[%clk 0:03:03.1]} 10... f5 {[%clk 0:02:58.5]} 11. f3 {[%clk 0:03:04.3]} 11...
b6 {[%clk 0:02:58]} 12. b4 {[%clk 0:03:04.6]} 12... a5 {[%clk 0:02:58.8]} 13.
bxa5 {[%clk 0:03:04.9]} 13... Rxa5 {[%clk 0:02:58.3]} 14. Nd3 {[%clk 0:03:01.1]}
14... Bd7 {[%clk 0:02:26.5]} 15. a4 {[%clk 0:03:00.1]} 15... Nf6 {[%clk
0:02:13.4]} 16. Nc1 {[%clk 0:02:54.2]} 16... f4 {[%clk 0:02:12.5]} 17. Bf2
{[%clk 0:02:54.3]} 17... g5 {[%clk 0:02:12]} 18. Nb3 {[%clk 0:02:55.4]} 18...
Ra8 {[%clk 0:02:11.1]} 19. a5 {[%clk 0:02:55.7]} 19... bxa5 {[%clk 0:02:07.8]}
20. Nxa5 {[%clk 0:02:48.2]} 20... Qe8 {[%clk 0:01:36.4]} 21. Nb5 {[%clk
0:02:12]} 21... Bxb5 {[%clk 0:01:33.5]} 22. cxb5 {[%clk 0:02:13.2]} 22... g4
{[%clk 0:01:30.8]} 23. Nc6 {[%clk 0:02:03.3]} 23... Nxc6 {[%clk 0:01:15.7]} 24.
dxc6 {[%clk 0:02:03.3]} 24... Rxa1 {[%clk 0:00:52.4]} 25. Qxa1 {[%clk 0:02:02]}
25... Qa8 {[%clk 0:00:41]} 26. Qb2 {[%clk 0:01:57.2]} 26... Rb8 {[%clk
0:00:36.2]} 27. Ra1 {[%clk 0:01:56.3]} 27... Qxc6 {[%clk 0:00:35.9]} 28. Qa2+
{[%clk 0:01:57.3]} 1

[Event "Open Nuevo Centro. Jornada 1"]
[Site "Chess.com"]
[Date "2020.06.19"]
[Round "5"]
[White "M�s Ripoll, Vicente"]
[Black "Deusa Ballesteros, Luis Miguel"]
[Result "0-1"]
[WhiteElo "1149"]
[BlackElo "1506"]
[TimeControl "180+2"]
[EndTime "11:24:58 PDT"]
[Termination "Victoria de luma2 por tiempo"]

1. e4 {[%clk 0:03:01.9]} 1... d5 {[%clk 0:02:45.6]} 2. exd5 {[%clk 0:03:01.7]}
2... Nf6 {[%clk 0:02:45]} 3. c4 {[%clk 0:03:00.9]} 3... c6 {[%clk 0:02:45.4]} 4.
dxc6 {[%clk 0:02:57.6]} 4... Nxc6 {[%clk 0:02:47.3]} 5. b3 {[%clk 0:02:57]} 5...
Bf5 {[%clk 0:02:45.7]} 6. Bb2 {[%clk 0:02:47.9]} 6... e5 {[%clk 0:02:46]} 7. Ne2
{[%clk 0:02:32.9]} 7... Qd7 {[%clk 0:02:43.1]} 8. g3 {[%clk 0:02:30.4]} 8...
O-O-O {[%clk 0:02:42]} 9. Bg2 {[%clk 0:02:24]} 9... Bxb1 {[%clk 0:02:34.1]} 10.
Rxb1 {[%clk 0:02:16.1]} 10... Bb4 {[%clk 0:02:32.7]} 11. O-O {[%clk 0:02:01.9]}
11... Rhe8 {[%clk 0:02:22.4]} 12. Bc3 {[%clk 0:02:00.2]} 12... Bxc3 {[%clk
0:02:20.9]} 13. dxc3 {[%clk 0:01:59.8]} 13... Qxd1 {[%clk 0:02:18.3]} 14. Rfxd1
{[%clk 0:01:58.5]} 14... e4 {[%clk 0:02:16]} 15. Rxd8+ {[%clk 0:01:52.4]} 15...
Rxd8 {[%clk 0:02:15.3]} 16. Kf1 {[%clk 0:01:46]} 16... Rd2 {[%clk 0:02:09.9]}
17. a4 {[%clk 0:01:32.5]} 17... Ne5 {[%clk 0:02:08.9]} 18. Ke1 {[%clk
0:01:29.7]} 18... Rc2 {[%clk 0:02:08.6]} 19. Kd1 {[%clk 0:01:05.3]} 19... Ra2
{[%clk 0:02:08.9]} 20. Nf4 {[%clk 0:00:34.8]} 20... Rxf2 {[%clk 0:02:01.8]} 21.
Ke1 {[%clk 0:00:18.1]} 21... Rc2 {[%clk 0:01:56.6]} 22. Bh1 {[%clk 0:00:10.3]}
22... Rxh2 {[%clk 0:01:47.3]} 0

[Event "Open Nuevo Centro. Jornada 1"]
[Site "Chess.com"]
[Date "2020.06.19"]
[Round "5"]
[White "Bendayan Claros, Aaron"]
[Black "Yatseta Fernandez, Marc Kazymyr"]
[Result "1-0"]
[WhiteElo "1656"]
[BlackElo "1398"]
[TimeControl "180+2"]
[EndTime "11:25:10 PDT"]
[Termination "Victoria de Cuajada_Zero por abandono"]

1. e4 {[%clk 0:03:00.5]} 1... e5 {[%clk 0:03:01.4]} 2. Nf3 {[%clk 0:03:01.1]}
2... Nc6 {[%clk 0:03:02.8]} 3. Bc4 {[%clk 0:03:01]} 3... d6 {[%clk 0:03:03.4]}
4. O-O {[%clk 0:03:01.4]} 4... Be7 {[%clk 0:03:04.6]} 5. d3 {[%clk 0:03:01.8]}
5... Nf6 {[%clk 0:03:05.9]} 6. Nbd2 {[%clk 0:03:02.3]} 6... Be6 {[%clk
0:03:07.1]} 7. Bb5 {[%clk 0:03:02.9]} 7... O-O {[%clk 0:03:07.5]} 8. Re1 {[%clk
0:03:03.5]} 8... a6 {[%clk 0:03:07.2]} 9. Ba4 {[%clk 0:03:04.2]} 9... b5 {[%clk
0:03:07.7]} 10. Bb3 {[%clk 0:03:05.4]} 10... Qd7 {[%clk 0:03:04.6]} 11. c3
{[%clk 0:03:05.4]} 11... Bg4 {[%clk 0:03:02.9]} 12. Nf1 {[%clk 0:03:01.5]} 12...
Rad8 {[%clk 0:02:50.1]} 13. h3 {[%clk 0:03:00.7]} 13... Bh5 {[%clk 0:02:43.9]}
14. Ng3 {[%clk 0:03:00.9]} 14... h6 {[%clk 0:02:37.5]} 15. Nxh5 {[%clk
0:02:58.3]} 15... Nxh5 {[%clk 0:02:37.5]} 16. Nh2 {[%clk 0:02:59.6]} 16... Nf6
{[%clk 0:02:32.3]} 17. Qf3 {[%clk 0:02:59.7]} 17... Kh7 {[%clk 0:02:20.4]} 18.
Nf1 {[%clk 0:02:59.7]} 18... a5 {[%clk 0:01:58.3]} 19. Ng3 {[%clk 0:03:00.1]}
19... a4 {[%clk 0:01:55.9]} 20. Bc2 {[%clk 0:03:00.7]} 20... Kh8 {[%clk
0:01:45.3]} 21. Nf5 {[%clk 0:02:58.4]} 21... Nh7 {[%clk 0:01:36.4]} 22. Be3
{[%clk 0:02:34.6]} 22... Bg5 {[%clk 0:01:31.6]} 23. d4 {[%clk 0:02:32.7]} 23...
Ne7 {[%clk 0:01:18.7]} 24. Rad1 {[%clk 0:02:09.7]} 24... Bxe3 {[%clk 0:01:07.6]}
25. fxe3 {[%clk 0:02:09.4]} 25... Ng5 {[%clk 0:01:02.1]} 26. Qh5 {[%clk
0:01:58.7]} 26... Nxf5 {[%clk 0:00:56.9]} 27. exf5 {[%clk 0:01:58.6]} 27... exd4
{[%clk 0:00:47.2]} 28. Rxd4 {[%clk 0:01:54]} 28... Rfe8 {[%clk 0:00:41.5]} 29.
f6 {[%clk 0:01:49]} 29... g6 {[%clk 0:00:37.5]} 30. Qxh6+ {[%clk 0:01:48]} 1